bitfinex/quotes_SOLUSD_20250818
["timestamp","ask_amount","ask_price","bid_price","bid_amount"]
[1755523229051,9.30397473,183.22,183.17,5.45940929]
[1755523229344,9.30397473,183.19,183.17,30.75940926]
[1755523229526,9.30397473,183.18,183.17,30.75940926]
[1755523229941,9.30397473,183.18,183.17,25.29999997]
[1755523230139,0.69,183.18,183.17,25.29999997]
[1755523230326,9.30397473,183.18,183.17,25.29999997]
[1755523230728,0.69,183.18,183.17,25.29999997]
[1755523230945,9.30397473,183.18,183.17,25.29999997]
[1755523231132,0.69,183.18,183.17,25.29999997]
[1755523231335,9.30397473,183.18,183.17,25.29999997]
[1755523231527,0.69,183.18,183.17,25.29999997]
[1755523231727,9.30397473,183.18,183.17,25.29999997]
[1755523232550,9.30397473,183.18,183.16,5.45961919]
[1755523233153,0.69,183.17,183.16,5.45961919]
[1755523233834,9.30397473,183.17,183.13,25.29999997]
[1755523234033,0.69,183.16,183.14,5.46020931]
[1755523234347,9.30397473,183.15,183.14,25.29999997]
[1755523234563,9.30397473,183.15,183.08,13.65492915]
[1755523234729,9.30397473,183.15,183.08,52.91492915]
[1755523234730,0.69,183.14,183.08,52.91492915]
[1755523234932,8.61397473,183.11,183.09,5.46179474]
[1755523235130,9.30397473,183.11,183.09,5.46179474]
[1755523235531,0.69,183.11,183.09,5.46179474]
[1755523235846,9.30397473,183.11,183.09,5.46179474]
[1755523236723,8.61397473,183.11,183.09,5.46179474]
[1755523237128,0.69,183.13,183.09,5.46179474]
[1755523237355,9.30397473,183.12,183.09,5.46179474]
[1755523237738,8.61397473,183.12,183.09,5.46179474]
[1755523238038,0.69,183.11,183.09,5.46179474]
[1755523238242,8.61397473,183.12,183.09,5.46179474]
[1755523238448,9.30397473,183.12,183.09,5.46179474]
[1755523238749,0.69,183.11,183.09,5.46179474]
[1755523239350,9.30397473,183.11,183.09,5.46179474]
[1755523239734,8.61397473,183.12,183.09,5.46179474]
[1755523240137,9.30397473,183.12,183.09,5.46179474]
[1755523240642,3.65661306,183.15,183.09,5.46179474]
[1755523240844,3.65661306,183.15,183.14,8.61397473]
[1755523241045,0.69,183.2,183.14,9.25397473]
[1755523241357,8.61397473,183.19,183.14,8.61397473]
[1755523241560,26.0,183.2,183.14,8.61397473]
[1755523241942,0.69,183.2,183.16,8.61397473]
[1755523242353,0.69,183.2,183.17,5.45940929]
[1755523243636,0.75,183.2,183.17,5.45940929]
[1755523243844,0.06,183.2,183.18,8.61397473]
[1755523244040,0.06,183.2,183.19,0.64]
[1755523244340,0.06,183.2,183.18,8.61397473]
[1755523244557,0.06,183.2,183.19,5.45881325]
[1755523246071,0.06,183.2,183.18,14.07308598]
[1755523246863,0.06,183.2,183.18,5.45911125]
[1755523248767,0.68,183.19,183.18,5.45911125]
[1755523248953,0.68,183.19,183.16,5.45941561]
[1755523249150,0.68,183.18,183.16,5.45941561]
[1755523249468,0.68,183.17,183.16,5.45941561]
[1755523249653,9.29397473,183.17,183.14,5.46005558]
[1755523249846,9.29397473,183.16,183.14,5.46005558]
[1755523250170,0.68,183.15,183.13,5.46060175]
[1755523250678,0.68,183.14,183.12,5.46086487]
[1755523250846,8.61397473,183.13,183.11,5.49117187]
[1755523251164,8.61397473,183.12,183.11,5.49117187]
[1755523251364,9.29397473,183.13,183.11,5.49117187]
[1755523251744,0.68,183.13,183.11,5.49117187]
[1755523251944,9.29397473,183.13,183.11,0.03]
[1755523253051,8.61397473,183.14,183.11,0.03]
[1755523253941,9.29397473,183.14,183.11,0.03]
[1755523254268,0.68,183.13,183.11,0.03]
[1755523255653,0.68,183.12,183.11,0.03]
[1755523256258,0.68,183.12,183.11,30.79119818]
[1755523256461,9.29397473,183.14,183.11,30.79119818]
[1755523256660,0.68,183.13,183.11,30.79119818]
[1755523258476,8.61397473,183.14,183.11,30.79119818]
[1755523258675,9.29397473,183.14,183.11,30.79119818]
[1755523258975,0.68,183.13,183.11,30.79119818]
[1755523259360,9.29397473,183.13,183.11,30.79119818]
[1755523259667,0.68,183.13,183.11,30.79119818]
[1755523260269,9.29397473,183.12,183.11,25.33]
[1755523261552,0.68,183.12,183.11,25.33]
[1755523261777,12.27818809,183.15,183.11,30.79116513]
[1755523261982,4.34421336,183.15,183.11,31.43116513]
[1755523262285,9.29397473,183.15,183.11,30.79116513]
[1755523262460,8.61397473,183.13,183.11,30.79116513]
[1755523262780,9.29397473,183.13,183.11,30.79116513]
[1755523263076,8.61397473,183.13,183.11,30.79116513]
[1755523263279,9.29397473,183.13,183.11,30.79116513]
[1755523264165,8.61397473,183.13,183.11,30.79116513]
[1755523264587,8.61397473,183.12,183.11,30.79116513]
[1755523264764,9.29397473,183.12,183.11,30.79116513]
[1755523265366,0.68,183.12,183.11,5.49116513]
[1755523265580,9.29397473,183.12,183.11,5.49116513]
[1755523265882,9.29397473,183.12,183.11,0.03]
[1755523269682,26.0,183.15,183.11,0.03]
[1755523269885,9.29397473,183.12,183.11,0.03]
[1755523270687,30.35098885,183.12,183.11,0.03]
[1755523270990,43.04444028,183.12,183.11,0.03]
[1755523271189,4.35098885,183.12,183.11,0.03]
[1755523271378,0.68,183.12,183.11,0.03]
[1755523271884,9.29397473,183.12,183.11,0.03]
[1755523272282,0.68,183.12,183.11,0.03]
[1755523272585,2.84914775,183.14,183.11,0.03]
[1755523272970,6.51913199,183.14,183.11,0.03]
[1755523273308,2.84914775,183.14,183.12,5.46089995]
[1755523273599,9.29397473,183.13,183.11,0.03]
[1755523273810,9.29397473,183.13,183.11,5.49111429]
[1755523273967,0.68,183.13,183.11,5.49111429]
[1755523274489,37.46312248,183.14,183.11,5.49111429]
[1755523274799,38.14312248,183.14,183.11,5.49111429]
[1755523275003,0.68,183.13,183.11,0.03]
[1755523275376,9.29397473,183.13,183.11,0.03]
[1755523275906,0.68,183.12,183.11,0.03]
[1755523276881,38.96451611,183.12,183.11,0.03]
[1755523277606,26.0,183.13,183.11,0.03]
[1755523277810,3.67071669,183.12,183.11,0.03]
[1755523278310,8.61397473,183.13,183.11,0.03]
[1755523278477,29.56914775,183.14,183.11,0.03]
[1755523278678,9.33397473,183.13,183.11,0.03]
[1755523279180,0.72,183.12,183.11,0.03]
[1755523279989,0.72,183.12,183.11,25.33]
[1755523281280,0.72,183.12,183.11,30.79119818]
[1755523282101,28.84914775,183.14,183.11,30.79119818]
[1755523282102,8.61397473,183.13,183.11,30.79119818]
[1755523282411,9.33397473,183.13,183.11,30.79119818]
[1755523282813,0.72,183.13,183.11,30.79119818]
[1755523283280,9.33397473,183.13,183.11,30.79119818]
[1755523285327,0.72,183.13,183.11,30.79119818]
[1755523285609,28.90914775,183.14,183.11,31.43119818]
[1755523285610,2.90914775,183.14,183.11,31.43119818]
[1755523285903,2.90914775,183.14,183.11,5.49119818]
[1755523286107,0.72,183.13,183.11,5.49119818]
[1755523286795,9.33397473,183.13,183.11,5.49119818]
[1755523286999,0.72,183.13,183.11,5.49119818]
[1755523287312,0.72,183.13,183.11,0.03]
[1755523288790,0.72,183.12,183.11,0.03]
[1755523289312,12.28747396,183.13,183.11,0.03]
[1755523289612,8.61397473,183.13,183.11,0.03]
[1755523289989,9.33397473,183.13,183.11,0.03]
[1755523290188,13.00762211,183.13,183.11,0.03]
[1755523290404,0.72,183.13,183.11,0.03]
[1755523291689,0.72,183.13,183.11,25.33]
[1755523292118,9.33397473,183.13,183.11,25.33]
[1755523292295,0.72,183.12,183.11,25.33]
[1755523293004,9.33397473,183.12,183.11,25.33]
[1755523293203,4.398907,183.12,183.11,25.33]
[1755523293610,3.678907,183.12,183.11,30.79119818]
[1755523294196,7.77231492,183.12,183.11,30.79119818]
[1755523294391,3.678907,183.12,183.11,30.79119818]
[1755523294604,7.77231492,183.12,183.11,30.79119818]
[1755523295101,2.90914775,183.14,183.11,40.04517291]
[1755523295420,0.06,183.14,183.12,0.64]
[1755523295598,0.06,183.14,183.13,5.46060175]
[1755523295803,3.74362303,183.14,183.13,5.46060175]
[1755523296019,0.06,183.16,183.13,14.71457648]
[1755523296207,0.06,183.18,183.15,8.61397473]
[1755523296512,0.06,183.18,183.17,8.61397473]
[1755523297019,1e-08,183.18,183.17,9.25397473]
[1755523297585,1e-08,183.18,183.17,14.71338402]
[1755523299826,0.06,183.2,183.18,15.10621557]
[1755523300017,1e-08,183.2,183.19,65.9601903]
[1755523300219,1e-08,183.2,183.19,91.8801903]
[1755523300632,1e-08,183.2,183.19,83.26621557]
[1755523300931,1e-08,183.2,183.19,91.8801903]
[1755523301141,1e-08,183.2,183.19,66.5801903]
[1755523301637,1e-08,183.2,183.19,72.03900355]
[1755523304254,1e-08,183.2,183.19,63.42502882]
[1755523304549,1e-08,183.2,183.19,72.03900355]
[1755523304715,1e-08,183.22,183.19,72.03900355]
[1755523304904,1e-08,183.22,183.21,23.7201903]
[1755523305107,1e-08,183.22,183.21,65.9401903]
[1755523305308,1e-08,183.22,183.21,66.5801903]
[1755523305719,1e-08,183.22,183.21,72.03840764]
[1755523306530,0.72,183.27,183.23,25.29999999]
[1755523306710,0.67,183.28,183.26,8.61397473]
[1755523306912,0.67,183.28,183.26,50.75397473]
[1755523307128,3.51662574,183.3,183.27,8.61397473]
[1755523307322,0.67,183.29,183.27,33.91397472]
[1755523307654,2.84662574,183.3,183.28,8.61397473]
[1755523307839,0.67,183.35,183.3,15.10621557]
[1755523308009,0.67,183.35,183.32,8.61397473]
[1755523308318,2.84536058,183.36,183.32,8.61397473]
[1755523308518,0.67,183.34,183.32,8.61397473]
[1755523308719,2.84536058,183.36,183.31,42.1]
[1755523308925,0.67,183.33,183.31,50.71397473]
[1755523309443,0.67,183.33,183.31,42.1]
[1755523309691,0.67,183.33,183.31,50.71397473]
[1755523309854,0.67,183.33,183.32,5.45494217]
[1755523310056,28.84536058,183.36,183.32,5.45494217]
[1755523310234,0.67,183.35,183.32,14.0689169]
[1755523310638,0.67,183.34,183.32,14.0689169]
[1755523310843,0.67,183.34,183.32,5.45494217]
[1755523311370,0.67,183.34,183.32,14.0689169]
[1755523311521,2.84536058,183.36,183.32,5.45494217]
[1755523311843,0.67,183.34,183.32,5.45494217]
[1755523312039,0.67,183.33,183.32,5.45494217]
[1755523312442,0.67,183.35,183.32,5.45494217]
[1755523312743,2.84536058,183.36,183.32,5.45494217]
[1755523312942,0.67,183.35,183.32,5.45494217]
[1755523313143,0.06,183.33,183.32,5.45494217]
[1755523313662,0.06,183.33,183.32,14.0689169]
[1755523313831,0.06,183.33,183.32,5.45494217]
[1755523314917,0.73,183.33,183.31,47.55519745]
[1755523315128,0.67,183.32,183.31,47.55519745]
[1755523315331,0.06,183.33,183.31,47.55519745]
[1755523315542,0.06,183.33,183.31,56.16917218]
[1755523316044,0.06,183.33,183.32,8.61397473]
[1755523316849,0.06,183.37,183.33,25.23999999]
[1755523317038,0.06,183.37,183.35,8.61397473]
[1755523317346,0.06,183.37,183.36,42.16]
[1755523318034,0.06,183.37,183.36,47.61375218]
[1755523319557,0.73,183.37,183.36,47.61375218]
[1755523320234,0.73,183.37,183.36,42.16]
[1755523321254,0.73,183.37,183.36,67.29999999]
[1755523321844,0.73,183.37,183.36,72.75375217]
[1755523323120,0.73,183.37,183.36,72.69375217]
[1755523325356,0.73,183.37,183.36,72.63375217]
[1755523325558,0.73,183.37,183.34,5.45409744]
[1755523325733,9.34397473,183.37,183.35,42.04]
[1755523325924,0.67,183.36,183.35,42.04]
[1755523326731,0.06,183.37,183.35,42.04]
[1755523326927,9.28397473,183.36,183.35,42.04]
[1755523327137,9.28397473,183.36,183.34,5.45409744]
[1755523327343,9.28397473,183.35,183.33,47.49459402]
[1755523327660,0.67,183.34,183.33,5.45459402]
[1755523328226,9.28397473,183.34,183.32,42.02]
[1755523328429,0.67,183.34,183.31,42.02]
[1755523329249,0.67,183.33,183.31,42.02]
[1755523329463,0.67,183.33,183.3,47.49526818]
[1755523329671,8.61397473,183.32,183.3,5.45526818]
[1755523329960,0.67,183.31,183.3,5.45526818]
[1755523330924,0.67,183.33,183.3,5.45526818]
[1755523331124,0.67,183.32,183.3,5.45526818]
[1755523332929,0.67,183.32,183.31,0.03]
[1755523333135,0.67,183.32,183.31,25.16999999]
[1755523333346,0.67,183.34,183.31,25.16999999]
[1755523333531,9.28397473,183.33,183.31,25.16999999]
[1755523333737,0.67,183.32,183.31,25.16999999]
[1755523333937,0.67,183.32,183.31,30.62523974]
[1755523336660,12.25818656,183.34,183.31,30.62523974]
[1755523336843,0.69,183.32,183.31,30.62523974]
[1755523337640,2.845959,183.34,183.31,14.73921448]
[1755523337841,2.845959,183.34,183.31,5.48523975]
[1755523338045,2.845959,183.34,183.31,47.40523975]
[1755523338340,2.845959,183.34,183.32,9.25397473]
[1755523338541,0.06,183.37,183.31,47.40523975]
[1755523338542,0.06,183.37,183.33,8.61397473]
[1755523338749,4.11530059,183.37,183.34,5.45434711]
[1755523338952,3.5353709,183.36,183.34,5.45434711]
[1755523339148,2.8453709,183.36,183.34,5.45434711]
[1755523339533,0.06,183.37,183.35,66.5001903]
[1755523339744,0.06,183.37,183.36,8.61397473]
[1755523339949,0.06,183.37,183.35,42.14]
[1755523340365,0.06,183.37,183.35,42.78]
[1755523340565,0.06,183.37,183.35,51.39397473]
[1755523340741,0.06,183.37,183.36,5.45375218]
[1755523341060,8.67397473,183.37,183.36,5.45375218]
[1755523341264,16.3881512,183.37,183.36,5.45375218]
[1755523341579,1e-08,183.37,183.36,29.81394248]
[1755523341740,4.53439835,183.45,183.36,29.81394248]
[1755523341741,8.61397473,183.5,183.4,15.10621557]
[1755523342069,8.61397473,183.43,183.37,23.7201903]
[1755523342243,0.06,183.41,183.38,8.61397473]
[1755523342559,0.06,183.41,183.37,24.3601903]
[1755523342962,0.06,183.41,183.38,5.45315737]
[1755523343837,0.06,183.41,183.38,6.09315737]
[1755523344037,0.06,183.41,183.38,14.7071321]
[1755523344776,0.06,183.41,183.39,8.61397473]
[1755523345064,0.06,183.41,183.39,9.25397473]
[1755523345846,0.06,183.41,183.4,5.4525627]
[1755523346275,13.83837308,183.52,183.44,8.61397473]
[1755523346568,13.83837308,183.52,183.41,15.10621557]
[1755523346569,9.30397473,183.52,183.47,8.61397473]
[1755523346771,3.53377186,183.51,183.46,8.61397473]
[1755523347298,8.61397473,183.48,183.41,57.74621557]
[1755523347504,0.69,183.47,183.43,8.61397473]
[1755523347783,0.69,183.46,183.43,8.61397473]
[1755523348096,0.69,183.46,183.44,5.45137374]
[1755523351301,9.36397473,183.48,183.44,5.45137374]
[1755523351474,0.69,183.47,183.44,5.45137374]
[1755523351961,0.06,183.48,183.45,8.61397473]
[1755523352168,0.06,183.48,183.46,5.45077946]
[1755523353973,9.30397473,183.47,183.41,38.77059888]
[1755523354171,8.61397473,183.45,183.41,38.77059888]
[1755523354482,9.30397473,183.44,183.42,5.45196816]
[1755523355066,9.30397473,183.43,183.4,5.4525627]
[1755523355497,0.06,183.48,183.4,5.4525627]
[1755523355673,39.01567126,183.48,183.42,8.61397473]
[1755523355866,35.36397473,183.48,183.41,15.74621557]
[1755523356070,0.06,183.46,183.43,5.45167093]
[1755523356490,0.75,183.46,183.43,5.45167093]
[1755523357571,9.36397473,183.46,183.43,5.45167093]
[1755523358171,9.36397473,183.46,183.42,5.45196816]
[1755523358367,8.67397473,183.46,183.42,5.45196816]
[1755523358676,9.30397473,183.45,183.42,5.45196816]
[1755523358866,0.69,183.44,183.42,5.45196816]
[1755523359692,0.69,183.44,183.41,5.45226541]
[1755523361580,0.06,183.46,183.41,19.08292895]
[1755523361781,0.06,183.46,183.42,0.64]
[1755523361990,0.75,183.46,183.42,0.64]
[1755523362691,0.75,183.46,183.42,25.77999999]
[1755523363187,9.36397473,183.46,183.42,25.13999999]
[1755523363389,9.36397473,183.46,183.43,5.45167093]
[1755523363390,9.30397473,183.45,183.43,5.45167093]
[1755523363698,0.69,183.45,183.43,5.45167093]
[1755523363901,0.69,183.44,183.43,5.45167093]
[1755523364073,9.30397473,183.44,183.42,30.5919038]
[1755523364272,0.69,183.43,183.42,30.5919038]
[1755523364786,0.69,183.43,183.39,5.45286002]
[1755523364980,26.0,183.44,183.39,5.45286002]
[1755523365196,0.69,183.43,183.39,5.45286002]
[1755523365507,9.30397473,183.43,183.39,5.45286002]
[1755523365878,26.0,183.45,183.39,19.72501008]
[1755523366085,26.0,183.45,183.4,9.25397473]
[1755523366405,35.29397473,183.45,183.4,0.64]
[1755523366615,0.06,183.46,183.43,8.61397473]
[1755523366914,0.06,183.46,183.44,8.61397473]
[1755523367097,0.06,183.46,183.43,9.25397473]
[1755523367404,0.06,183.46,183.44,5.45137374]
[1755523367812,0.74,183.46,183.44,5.45137374]
[1755523367989,8.67397473,183.46,183.44,5.45137374]
[1755523368193,0.68,183.45,183.44,5.45137374]
[1755523368701,8.67397473,183.46,183.44,5.45137374]
[1755523368899,0.06,183.46,183.44,5.45137374]
[1755523369410,0.06,183.46,183.42,19.08128969]
[1755523369582,0.06,183.46,183.42,28.33526442]
[1755523369919,0.06,183.46,183.43,8.61397473]
[1755523370980,0.06,183.46,183.42,19.72128969]
[1755523371186,0.06,183.46,183.42,28.33526442]
[1755523371775,0.06,183.46,183.42,27.69526442]
[1755523371981,0.06,183.46,183.42,19.72128969]
[1755523372203,0.74,183.46,183.42,19.08128969]
[1755523372404,0.06,183.46,183.45,8.61397473]
[1755523372582,0.06,183.46,183.45,33.75397472]
[1755523372777,0.06,183.46,183.45,34.39397472]
[1755523373105,0.06,183.46,183.45,25.13999999]
[1755523373482,0.06,183.46,183.45,30.59107657]
[1755523378313,0.06,183.46,183.45,39.8450513]
[1755523378817,0.06,183.46,183.45,39.2050513]
[1755523379304,0.06,183.46,183.45,30.59107657]
[1755523380917,0.06,183.48,183.45,6.09107658]
[1755523381222,0.68,183.54,183.47,8.61397473]
[1755523381386,0.68,183.54,183.48,43.04]
[1755523381585,0.68,183.54,183.51,8.61397473]
[1755523381916,0.68,183.54,183.52,5.44899738]
[1755523382912,8.61397473,183.56,183.52,5.44899738]
[1755523383111,0.68,183.53,183.52,5.44899738]
[1755523383423,3.65732037,183.58,183.52,5.44899738]
[1755523383734,8.61397473,183.55,183.52,5.44899738]
[1755523383887,0.68,183.54,183.51,5.44929431]
[1755523384085,0.68,183.53,183.51,5.44929431]
[1755523384288,0.68,183.52,183.51,5.44929431]
[1755523384815,0.68,183.54,183.51,5.44929431]
[1755523385808,0.68,183.54,183.49,5.44988827]
[1755523386013,0.68,183.53,183.5,8.61397473]
[1755523386213,0.68,183.52,183.49,5.44988827]
[1755523386422,0.68,183.51,183.49,5.44988827]
[1755523386601,8.61397473,183.52,183.49,5.44988827]
[1755523386919,0.68,183.51,183.49,5.44988827]
[1755523388302,0.68,183.5,183.48,5.4501853]
[1755523388618,0.68,183.52,183.48,5.4501853]
[1755523388807,0.68,183.51,183.48,5.4501853]
[1755523389505,8.61397473,183.49,183.46,0.03]
[1755523389696,8.61397473,183.48,183.46,0.03]
[1755523390024,9.29397473,183.48,183.46,0.03]
[1755523390214,0.68,183.47,183.46,0.03]
[1755523390821,9.29397473,183.47,183.46,0.03]
[1755523391712,35.29397473,183.47,183.46,0.03]
[1755523392019,22.47805472,183.47,183.46,0.03]
[1755523392533,37.58427029,183.47,183.46,0.03]
[1755523393153,17.02757236,183.47,183.46,0.03]
[1755523393334,30.34111687,183.47,183.46,0.03]
[1755523393652,38.9550916,183.47,183.46,0.03]
[1755523395917,30.34111687,183.47,183.46,0.03]
[1755523396247,12.2750916,183.47,183.46,0.03]
[1755523396415,8.61397473,183.47,183.46,0.03]
[1755523396616,35.32397473,183.47,183.46,0.03]
[1755523396837,38.9850916,183.47,183.46,0.03]
[1755523397442,30.37111687,183.47,183.46,0.03]
[1755523397745,38.9850916,183.47,183.46,0.03]
[1755523399160,18.43557396,183.47,183.46,0.03]
[1755523399318,37.61235691,183.47,183.46,0.03]
[1755523399726,18.43557396,183.47,183.46,0.03]
[1755523400135,22.50610358,183.47,183.46,0.03]
[1755523400329,17.05562122,183.47,183.46,0.03]
[1755523401850,22.50610358,183.47,183.46,0.03]
[1755523402029,40.45678357,183.47,183.46,0.03]
[1755523403124,82.47678357,183.47,183.46,0.03]
[1755523403329,40.45678357,183.47,183.46,0.03]
[1755523403529,82.47678357,183.47,183.46,0.03]
[1755523403947,78.40625395,183.47,183.46,0.03]
[1755523404253,7.21558129,183.47,183.46,0.03]
[1755523404452,38.16843915,183.47,183.46,0.03]
[1755523404627,41.82955602,183.47,183.46,0.03]
[1755523405227,32.50558129,183.47,183.46,0.03]
[1755523405433,41.11955602,183.47,183.46,0.03]
[1755523406548,37.45843915,183.47,183.46,0.03]
[1755523406759,28.84446442,183.47,183.46,0.03]
[1755523406939,37.45843915,183.47,183.46,0.03]
[1755523407328,38.16843915,183.47,183.46,0.03]
[1755523407530,37.45843915,183.47,183.46,0.03]
[1755523408755,28.84446442,183.47,183.46,0.03]
[1755523408957,37.45843915,183.47,183.46,0.03]
[1755523410276,38.16843915,183.47,183.46,0.03]
[1755523410562,47.28042173,183.47,183.46,0.03]
[1755523411642,41.82993937,183.47,183.46,0.03]
[1755523412055,41.11993937,183.47,183.46,0.03]
[1755523412265,37.45843915,183.47,183.46,0.03]
[1755523412839,28.84446442,183.47,183.46,0.03]
[1755523413148,37.45843915,183.47,183.46,0.03]
[1755523413745,28.84446442,183.47,183.46,0.03]
[1755523414063,37.45843915,183.47,183.46,0.03]
[1755523414356,28.84446442,183.47,183.46,0.03]
[1755523414562,37.45843915,183.47,183.46,0.03]
[1755523415072,28.84446442,183.47,183.46,0.03]
[1755523415377,37.45843915,183.47,183.46,0.03]
[1755523418592,38.16843915,183.47,183.46,0.03]
[1755523418765,29.55446442,183.47,183.46,0.03]
[1755523419065,38.16843915,183.47,183.46,0.03]
[1755523423080,2.84446442,183.47,183.46,0.03]
[1755523423257,28.84446442,183.47,183.46,0.03]
[1755523423591,37.45843915,183.47,183.46,0.03]
[1755523423875,28.84446442,183.47,183.46,0.03]
[1755523424170,37.45843915,183.47,183.46,0.03]
[1755523424762,38.16843915,183.47,183.46,0.03]
[1755523424963,28.84446442,183.47,183.46,0.03]
[1755523425162,37.45843915,183.47,183.46,0.03]
[1755523425977,38.16843915,183.47,183.46,0.03]
[1755523426182,43.61892151,183.47,183.46,0.03]
[1755523426370,62.3864622,183.47,183.46,0.03]
[1755523426672,66.45584033,183.47,183.46,0.03]
[1755523428479,57.8418656,183.47,183.46,0.03]
[1755523428772,66.45584033,183.47,183.46,0.03]
[1755523429877,66.45584033,183.47,183.44,0.03]
[1755523429878,15.10621557,183.46,183.44,0.03]
[1755523430079,73.03089355,183.45,183.44,0.03]
[1755523430271,73.69089355,183.45,183.44,0.03]
[1755523430854,26.0,183.43,183.42,0.03]
[1755523431074,83.92467798,183.43,183.42,0.03]
[1755523431288,99.69089355,183.43,183.42,0.03]
[1755523431891,105.14256448,183.43,183.42,0.03]
[1755523432957,109.71885025,183.43,183.42,0.03]
[1755523433377,15.10621557,183.42,183.4,0.03]
[1755523433608,72.99089355,183.41,183.4,0.03]
[1755523433884,73.65089355,183.41,183.4,0.03]
[1755523434662,79.10315896,183.41,183.4,0.03]
[1755523434863,79.1124938,183.41,183.4,0.03]
[1755523435584,83.53604514,183.41,183.4,0.03]
[1755523437384,41.10621557,183.37,183.36,0.03]
[1755523437583,98.94022839,183.37,183.35,0.03]
[1755523437782,32.11872461,183.36,183.35,0.03]
[1755523437972,40.73269934,183.36,183.35,0.03]
[1755523439189,37.57247679,183.36,183.35,0.03]
[1755523439489,79.07247679,183.36,183.35,0.03]
[1755523440591,46.18645152,183.36,183.35,0.03]
[1755523440773,87.68645152,183.36,183.35,0.03]
[1755523442280,26.0,183.33,183.31,0.03]
[1755523442482,41.10621557,183.3,183.29,0.03]
[1755523442679,98.99114069,183.3,183.29,0.03]
[1755523442890,15.10621557,183.29,183.27,0.03]
[1755523443199,59.70023511,183.28,183.27,0.03]
[1755523443381,59.95143254,183.28,183.27,0.03]
[1755523444186,79.12266484,183.28,183.27,0.03]
[1755523445268,26.0,183.24,183.21,0.03]
[1755523445466,8.61397473,183.22,183.21,0.03]
[1755523445670,26.0,183.2,183.15,0.03]
[1755523445863,94.9923755,183.2,183.16,0.2]
[1755523446086,8.61397473,183.18,183.16,0.2]
[1755523446285,50.31397473,183.18,183.16,0.2]
[1755523446590,42.36,183.18,183.16,0.2]
[1755523446796,8.61397473,183.18,183.16,0.2]
[1755523447374,14.73308598,183.18,183.16,0.2]
[1755523448693,21.22532682,183.18,183.16,0.2]
[1755523448889,29.83930155,183.18,183.16,0.2]
[1755523449103,34.61397473,183.18,183.16,0.2]
[1755523449273,34.61397473,183.18,183.17,0.67]
[1755523449478,26.0,183.18,183.17,0.67]
[1755523449775,34.61397473,183.18,183.17,0.67]
[1755523450595,26.0,183.18,183.17,0.03]
[1755523450792,34.61397473,183.18,183.17,0.03]
[1755523453074,26.0,183.18,183.17,0.03]
[1755523453279,34.61397473,183.18,183.17,0.03]
[1755523453486,26.0,183.18,183.17,0.67]
[1755523453685,15.76621557,183.23,183.17,0.67]
[1755523453686,41.66,183.2,183.17,0.67]
[1755523453977,8.61397473,183.19,183.18,0.64]
[1755523454680,8.61397473,183.19,183.17,0.03]
[1755523454883,8.61397473,183.18,183.17,0.67]
[1755523455102,70.52854467,183.21,183.17,0.67]
[1755523455275,8.61397473,183.18,183.17,0.67]
[1755523455479,2.84854467,183.21,183.18,6.09911125]
[1755523455687,2.84854467,183.21,183.18,5.45911125]
[1755523455890,8.61397473,183.21,183.19,0.64]
[1755523456279,8.61397473,183.21,183.18,5.45911125]
[1755523456481,8.61397473,183.2,183.18,5.45911125]
[1755523456794,8.61397473,183.19,183.17,30.68938386]
[1755523456989,0.7,183.22,183.17,30.68938386]
[1755523457297,8.61397473,183.19,183.17,31.32938386]
[1755523457492,8.61397473,183.18,183.17,25.23]
[1755523458503,8.61397473,183.18,183.17,31.32931391]
[1755523458681,8.61397473,183.19,183.17,31.32931391]
[1755523458882,8.61397473,183.19,183.17,30.68931391]
[1755523459083,8.61397473,183.19,183.18,0.64]
[1755523459280,8.61397473,183.19,183.17,30.68931391]
[1755523459474,8.61397473,183.18,183.17,0.03]